fUSD/lending_fUSD_20251011
["ID","MTS","AMOUNT","RATE_DAILY","PERIOD"]
[390768986,1760142649389,-6740.08341,0.00017,2]
[390768987,1760142649399,-151.0,0.00017,2]
[390768988,1760142649412,-172.728692,0.00017,2]
[390768989,1760142649422,-6740.08341,0.00017,2]
[390768990,1760142649433,-160.631054,0.00017,2]
[390768991,1760142649443,-172.728692,0.00017,2]
[390768992,1760142649452,-6740.08341,0.00017,2]
[390768994,1760142649462,-160.631054,0.00017,2]
[390768995,1760142649472,-172.728692,0.00017,2]
[390768997,1760142649481,-6740.08341,0.00017,2]
[390768998,1760142649491,-160.631054,0.00017,2]
[390768999,1760142649501,-151.0,0.00017,2]
[390769000,1760142649511,-151.0,0.00017,2]
[390769001,1760142649521,-160.631054,0.00017,2]
[390769002,1760142649876,-151.0,0.00017,2]
[390769003,1760142649902,-151.0,0.00017,2]
[390769004,1760142649915,-151.0,0.00017,2]
[390769005,1760142649924,-151.0,0.00017,2]
[390769006,1760142649934,-151.0,0.00017,2]
[390769007,1760142649943,-151.0,0.00017,2]
[390769008,1760142649953,-1769.302141,0.00017,2]
[390769009,1760142649963,-1769.302141,0.00017,2]
[390769010,1760142649973,-1769.302141,0.00017,2]
[390769011,1760142649982,-151.0,0.00017,2]
[390769012,1760142649991,-1769.302141,0.00017,2]
[390769013,1760142650000,-461.100143,0.00017,2]
[390769014,1760142650010,-151.0,0.00017,2]
[390769015,1760142650020,-461.100143,0.00017,2]
[390769016,1760142650030,-151.0,0.00017,2]
[390769017,1760142650039,-151.0,0.00017,2]
[390769018,1760142650048,-461.100143,0.00017,2]
[390769019,1760142650058,-461.100143,0.00017,2]
[390769020,1760142650067,-151.0,0.00017,2]
[390769021,1760142650076,-151.0,0.00017,2]
[390769022,1760142650086,-151.0,0.00017,2]
[390769023,1760142650095,-10051.847966,0.00017,2]
[390769024,1760142650104,-151.0,0.00017,2]
[390769025,1760142650115,-151.0,0.00017,2]
[390769026,1760142650124,-356.070871,0.00017,2]
[390769027,1760142650133,-10051.847966,0.00017,2]
[390769028,1760142650143,-151.0,0.00017,2]
[390769029,1760142650152,-151.0,0.00017,2]
[390769030,1760142650165,-356.070871,0.00017,2]
[390769031,1760142650174,-828.821976,0.00017,2]
[390769032,1760142650184,-151.0,0.00017,2]
[390769033,1760142650194,-151.0,0.00017,2]
[390769034,1760142650203,-151.0,0.00017,2]
[390769035,1760142650212,-356.070871,0.00017,2]
[390769036,1760142650223,-828.821976,0.00017,2]
[390769037,1760142650232,-223.857747,0.00017,2]
[390769038,1760142650242,-151.0,0.00017,2]
[390769039,1760142650252,-356.070871,0.00017,2]
[390769040,1760142650262,-828.821976,0.00017,2]
[390769041,1760142650271,-441.333143,0.00017,2]
[390769042,1760142650287,-152.261176,0.00017,2]
[390769043,1760142650298,-151.0,0.00017,2]
[390769044,1760142650307,-151.0,0.00017,2]
[390769045,1760142650316,-828.821976,0.00017,2]
[390769046,1760142650326,-441.333143,0.00017,2]
[390769047,1760142650335,-441.333143,0.00017,2]
[390769048,1760142650345,-441.333143,0.00017,2]
[390769049,1760142650355,-151.0,0.00017,2]
[390769050,1760142650365,-373.64956,0.00017,2]
[390769051,1760142650376,-10051.847966,0.00017,2]
[390769052,1760142650386,-174.14795,0.00017,2]
[390769053,1760142650395,-151.0,0.00017,2]
[390769054,1760142650410,-373.64956,0.00017,2]
[390769055,1760142650421,-10051.847966,0.00017,2]
[390769056,1760142650432,-151.0,0.00017,2]
[390769057,1760142650444,-174.14795,0.00017,2]
[390769058,1760142650455,-348.137722,0.00017,2]
[390769059,1760142650466,-151.0,0.00017,2]
[390769060,1760142650480,-373.64956,0.00017,2]
[390769061,1760142650491,-174.14795,0.00017,2]
[390769062,1760142650501,-151.0,0.00017,2]
[390769063,1760142650512,-348.137722,0.00017,2]
[390769064,1760142650523,-373.64956,0.00017,2]
[390769065,1760142650533,-174.14795,0.00017,2]
[390769066,1760142650543,-151.0,0.00017,2]
[390769067,1760142650552,-348.137722,0.00017,2]
[390769068,1760142650562,-1860.138275,0.00017,2]
[390769069,1760142650572,-151.0,0.00017,2]
[390769070,1760142650583,-348.137722,0.00017,2]
[390769071,1760142650593,-1860.138275,0.00017,2]
[390769072,1760142650603,-151.0,0.00017,2]
[390769073,1760142650613,-151.0,0.00017,2]
[390769074,1760142650623,-2074.817064,0.00017,2]
[390769075,1760142650634,-1860.138275,0.00017,2]
[390769076,1760142650644,-153.597126,0.00017,2]
[390769077,1760142650657,-2074.817064,0.00017,2]
[390769078,1760142650667,-1860.138275,0.00017,2]
[390769079,1760142650677,-1037.589344,0.00017,2]
[390769080,1760142650687,-2074.817064,0.00017,2]
[390769081,1760142650697,-1037.589344,0.00017,2]
[390769082,1760142650707,-2074.817064,0.00017,2]
[390769083,1760142650717,-1037.589344,0.00017,2]
[390769084,1760142650727,-151.0,0.00017,2]
[390769085,1760142650737,-151.0,0.00017,2]
[390769086,1760142650746,-151.0,0.00017,2]
[390769087,1760142650755,-1037.589344,0.00017,2]
[390769088,1760142650766,-316.194964,0.00017,2]
[390769089,1760142650775,-316.194964,0.00017,2]
[390769090,1760142650785,-316.194964,0.00017,2]
[390769091,1760142650795,-449.255288,0.00017,2]
[390769092,1760142650804,-2333.996642,0.00017,2]
[390769093,1760142650814,-449.255288,0.00017,2]
[390769094,1760142650823,-316.194964,0.00017,2]
[390769095,1760142650834,-2333.996642,0.00017,2]
[390769096,1760142650844,-449.255288,0.00017,2]
[390769097,1760142650853,-2333.996642,0.00017,2]
[390769098,1760142650863,-449.255288,0.00017,2]
[390769099,1760142650873,-151.086032,0.00017,2]
[390769100,1760142650883,-2333.996642,0.00017,2]
[390769101,1760142650893,-151.0,0.00017,2]
[390769102,1760142650903,-151.086032,0.00017,2]
[390769103,1760142650914,-151.086032,0.00017,2]
[390769104,1760142650924,-151.0,0.00017,2]
[390769105,1760142650934,-648.288852,0.00017,2]
[390769106,1760142650944,-151.086032,0.00017,2]
[390769107,1760142650953,-648.288852,0.00017,2]
[390769108,1760142650963,-151.0,0.00017,2]
[390769109,1760142650972,-648.288852,0.00017,2]
[390769110,1760142650982,-151.0,0.00017,2]
[390769111,1760142650991,-151.0,0.00017,2]
[390769112,1760142651001,-648.288852,0.00017,2]
[390769113,1760142651010,-151.0,0.00017,2]
[390769114,1760142651019,-162.051673,0.00017,2]
[390769115,1760142651029,-162.051673,0.00017,2]
[390769116,1760142651038,-180.572102,0.00017,2]
[390769117,1760142651047,-151.0,0.00017,2]
[390769118,1760142651056,-162.051673,0.00017,2]
[390769119,1760142651066,-162.051673,0.00017,2]
[390769120,1760142651075,-189.365435,0.00017,2]
[390769121,1760142651084,-1500.0,0.00017029,2]
[390769122,1760142651094,-1000.0,0.00017029,2]
[390769123,1760142651104,-403.46026128,0.00017029,2]
[390769124,1760142651114,-1500.0,0.00017029,2]
[390769125,1760142651124,-1500.0,0.00017029,2]
[390769126,1760142651133,-1252.85198888,0.00017029,2]
[390769127,1760142651143,-1500.0,0.00017029,2]
[390769128,1760142651153,-1500.0,0.00017029,2]
[390769129,1760142651164,-278.5,0.00017029,2]
[390769130,1760142651174,-500.0,0.00017041,2]
[390769131,1760142651184,-500.0,0.00017096,2]
[390769132,1760142651194,-1000.0,0.00017121,2]
[390769133,1760142651204,-500.0,0.00017123,2]
[390769134,1760142651214,-151.0,0.00017147,2]
[390769135,1760142651223,-151.0,0.00017147,2]
[390769136,1760142651233,-500.0,0.0001715,2]
[390769137,1760142651243,-500.0,0.00017151,2]
[390769138,1760142651252,-2500.0,0.00017164,2]
[390769139,1760142651263,-2500.0,0.00017164,2]
[390769140,1760142651273,-2500.0,0.00017164,2]
[390769141,1760142651287,-2500.0,0.00017164,2]
[390769142,1760142651297,-2500.0,0.00017164,2]
[390769143,1760142651307,-1600.0,0.00017179,2]
[390769144,1760142651317,-1718.29,0.00017183,2]
[390769145,1760142651328,-500.0,0.00017191,2]
[390769146,1760142651338,-500.0,0.00017192,2]
[390769147,1760142651348,-500.0,0.00017205,2]
[390769148,1760142651358,-500.0,0.0001726,2]
[390769149,1760142651368,-176.09635742,0.00017263,2]
[390769150,1760142651379,-397.16250816,0.00017271,2]
[390769151,1760142651390,-471.13721014,0.0001729,9]
[390769152,1760142651400,-200.0,0.00017301,2]
[390769153,1760142651413,-500.0,0.00017315,2]
[390769154,1760142651423,-736.0,0.00017316,2]
[390769155,1760142651433,-830.0,0.00017354,2]
[390769156,1760142651443,-808.18,0.00017363,2]
[390769157,1760142651453,-200.72,0.00017368,2]
[390769158,1760142651463,-442.70523931,0.0001737,2]
[390769159,1760142651472,-150.0,0.00017376,2]
[390769160,1760142651481,-306.9,0.00017392,2]
[390769161,1760142651490,-500.0,0.00017425,2]
[390769162,1760142651500,-1718.29,0.00017457,2]
[390769163,1760142651509,-500.0,0.00017465,2]
[390769164,1760142651519,-500.0,0.00017466,2]
[390769165,1760142651529,-500.0,0.00017495,2]
[390769166,1760142651539,-2000.0,0.00017495,2]
[390769167,1760142651549,-500.0,0.00017495,2]
[390769168,1760142651559,-200.0,0.00017495,2]
[390769169,1760142651569,-830.0,0.00017498,2]
[390769170,1760142651578,-20000.0,0.000175,2]
[390769171,1760142651589,-4978.89649135,0.00017515,2]
[390769172,1760142651599,-1000.0,0.00017521,2]
[390769173,1760142651608,-395.98581414,0.00017521,2]
[390769174,1760142651618,-1000.0,0.00017521,2]
[390769175,1760142651628,-1000.0,0.00017521,2]
[390769176,1760142651639,-1000.0,0.00017521,2]
[390769177,1760142651648,-1000.0,0.00017521,2]
[390769178,1760142651659,-1000.0,0.00017521,2]
[390769179,1760142651669,-840.26934151,0.00017521,2]
[390769180,1760142651679,-1000.0,0.00017521,2]
[390769181,1760142651689,-1000.0,0.00017521,2]
[390769182,1760142651698,-1002.7722071,0.00017521,2]
[390769183,1760142651707,-1000.0,0.00017521,2]
[390769184,1760142651718,-1000.0,0.00017521,2]
[390769185,1760142651727,-1000.0,0.00017521,2]
[390769186,1760142651737,-6512.47,0.00017527,2]
[390769187,1760142651747,-1001.26481556,0.00017534,2]
[390769188,1760142651757,-350.0,0.00017534,2]
[390769189,1760142651767,-2000.0,0.00017577,2]
[390769190,1760142651778,-615.50769708,0.00017577,2]
[390769191,1760142651788,-2000.0,0.00017577,2]
[390769192,1760142651798,-1409.17224873,0.00017577,2]
[390769193,1760142651809,-1569.72177573,0.00017577,2]
[390769194,1760142651819,-830.0,0.00017627,2]
[390769195,1760142651830,-530.65401026,0.00017668,2]
[390769196,1760142651844,-830.0,0.00017681,2]
[390769197,1760142651854,-151.0,0.00017695,2]
[390769198,1760142651863,-151.0,0.00017695,2]
[390769199,1760142651874,-500.0,0.00017699,2]
[390769200,1760142651883,-500.0,0.00017704,2]
[390769201,1760142651893,-830.0,0.00017709,2]
[390769202,1760142651904,-1765.41585543,0.00017712,2]
[390769203,1760142651916,-3000.0,0.00017712,2]
[390769204,1760142651926,-3000.0,0.00017712,2]
[390769205,1760142651936,-3000.0,0.00017712,2]
[390769206,1760142651946,-2746.84252102,0.00017712,2]
[390769207,1760142651955,-316.11,0.00017714,2]
[390769208,1760142651965,-1718.29,0.00017731,2]
[390769209,1760142651975,-231.34,0.00017739,2]
[390769210,1760142651985,-231.34,0.0001774,2]
[390769211,1760142651994,-471.13721014,0.00017743,10]
[390769212,1760142652004,-830.0,0.00017783,2]
[390769213,1760142652014,-830.0,0.00017787,2]
[390769214,1760142652024,-306.9,0.00017803,2]
[390769215,1760142652034,-10000.0,0.00017808,4]
[390769216,1760142652043,-168.0,0.0001784,2]
[390769217,1760142652053,-830.0,0.00017841,2]
[390769218,1760142652063,-200.0,0.00017849,2]
[390769219,1760142652072,-316.11,0.0001785,2]
[390769220,1760142652082,-1098.20437616,0.00017884,2]
[390769221,1760142652091,-830.0,0.00017968,2]
[390769222,1760142652100,-500.0,0.00017973,2]
[390769223,1760142652110,-316.10223636,0.00017987,2]
[390769224,1760142652120,-416.91,0.00017987,2]
[390769225,1760142652130,-306.4,0.00017987,2]
[390769226,1760142652140,-155.0,0.00017999,2]
[390769227,1760142652150,-28310.50287474,0.00018,2]
[390769228,1760142652163,-445.31826688,0.00018,2]
[390769229,1760142652173,-5127.92456367,0.00018,2]
[390769230,1760142652183,-138124.0844681,0.00018,2]
[390769231,1760142652193,-1718.29,0.00018005,2]
[390769232,1760142652207,-823.0,0.00018042,2]
[390769233,1760142652218,-823.0,0.00018042,2]
[390769234,1760142652228,-3292.0,0.00018045,2]
[390769235,1760142652238,-866.29164868,0.00018068,2]
[390769236,1760142652248,-500.0,0.00018068,2]
[390769237,1760142652257,-503.5476966,0.00018068,2]
[390769238,1760142652271,-1500.0,0.00018068,2]
[390769239,1760142652281,-1500.0,0.00018068,2]
[390769240,1760142652292,-1500.0,0.00018068,2]
[390769241,1760142652306,-1276.278353,0.00018068,2]
[390769242,1760142652315,-1500.0,0.00018068,2]
[390769243,1760142652325,-1500.0,0.00018068,2]
[390769244,1760142652336,-1500.0,0.00018068,2]
[390769245,1760142652345,-1500.0,0.00018068,2]
[390769246,1760142652354,-1000.0,0.00018082,2]
[390769247,1760142652364,-150.38598541,0.00018082,2]
[390769248,1760142652375,-150.0,0.00018082,2]
[390769249,1760142652384,-200.72,0.00018123,2]
[390769250,1760142652393,-416.91,0.00018124,2]
[390769251,1760142652402,-2500.0,0.00018125,2]
[390769252,1760142652415,-2500.0,0.00018125,2]
[390769253,1760142652423,-5808.71257324,0.00018148,2]
[390769254,1760142652433,-471.13721014,0.00018197,11]
[390769255,1760142652443,-150.0,0.00018198,2]
[390769256,1760142652452,-150.0,0.00018198,2]
[390769257,1760142652461,-150.0,0.00018198,2]
[390769258,1760142652470,-150.0,0.00018198,2]
[390769259,1760142652480,-150.0,0.00018198,2]
[390769260,1760142652489,-150.0,0.00018198,2]
[390769261,1760142652498,-150.0,0.00018198,2]
[390769262,1760142652507,-150.0,0.00018198,2]
[390769263,1760142652516,-150.0,0.00018198,2]
[390769264,1760142652525,-150.0,0.00018198,2]
[390769265,1760142652534,-306.9,0.00018215,2]
[390769266,1760142652544,-346.92554585,0.00018241,2]
[390769267,1760142652554,-267.46074303,0.00018241,2]
[390769268,1760142652564,-670.58624095,0.00018242,2]
[390769269,1760142652574,-1266.23517305,0.00018242,2]
[390769270,1760142652583,-644.79446246,0.00018242,2]
[390769271,1760142652593,-151.0,0.00018243,2]
[390769272,1760142652602,-151.0,0.00018243,2]
[390769273,1760142652611,-500.0,0.00018247,2]
[390769274,1760142652621,-424.083877,0.00018247,2]
[390769275,1760142652633,-424.083877,0.00018247,2]
[390769276,1760142652649,-424.083877,0.00018247,2]
[390769277,1760142652665,-424.083877,0.00018247,2]
[390769278,1760142652694,-3292.0,0.00018247,2]
[390769279,1760142652713,-2988.76242661,0.0001826,2]
[390769280,1760142652733,-1164.09226274,0.0001826,2]
[390769281,1760142652752,-2120.11715664,0.0001826,2]
[390769282,1760142652767,-1718.29,0.00018279,2]
[390769283,1760142652782,-168.0,0.00018292,2]
[390769284,1760142652800,-15353.48345424,0.00018317,2]
[390769285,1760142652816,-3275.35133889,0.00018344,2]
[390769286,1760142652831,-475.17222148,0.00018355,2]
[390769287,1760142652847,-2760.82,0.00018356,2]
[390769288,1760142652865,-1484.11013941,0.00018395,5]
[390769289,1760142652880,-1390.58183349,0.000184,2]
[390769290,1760142652897,-590.75308722,0.000184,2]
[390769291,1760142652911,-298.96714742,0.000184,2]
[390769292,1760142652930,-233.32918811,0.000184,2]
[390769293,1760142652945,-1378.47508663,0.000184,2]
[390769294,1760142652961,-10223.85292413,0.000184,2]
[390769295,1760142652972,-174.79304801,0.000184,2]
[390769296,1760142652987,-197.96892619,0.000184,2]
[390769297,1760142653005,-170.17523144,0.000184,2]
[390769298,1760142653016,-101278.8893127,0.00018402,2]
[390769299,1760142653033,-155618.5039832,0.00018465,2]
[390769300,1760142653055,-347402.704066,0.000185,2]
[390769301,1760142653070,-8818.36393045,0.000185,2]
[390769302,1760142653081,-500.0,0.00018521,2]
[390769303,1760142653097,-150.0,0.0001854,2]
[390769304,1760142653114,-1718.29,0.00018553,2]
[390769305,1760142653132,-5888.0,0.00018599,2]
[390769306,1760142653149,-1390.58183349,0.000186,2]
[390769307,1760142653170,-590.75308722,0.000186,2]
[390769308,1760142653188,-298.96714742,0.000186,2]
[390769309,1760142653205,-233.32918811,0.000186,2]
[390769310,1760142653222,-1378.47508663,0.000186,2]
[390769311,1760142653240,-10223.85292413,0.000186,2]
[390769312,1760142653257,-170.17523144,0.000186,2]
[390769313,1760142653274,-171.0,0.00018609,120]
[390769314,1760142653290,-173.0,0.00018609,120]
[390769315,1760142653308,-2000.0,0.00018616,2]
[390769316,1760142653323,-504.43271509,0.00018616,2]
[390769317,1760142653339,-2000.0,0.00018616,2]
[390769318,1760142653354,-2000.0,0.00018616,2]
[390769319,1760142653369,-2000.0,0.00018616,2]
[390769320,1760142653384,-2000.0,0.00018616,2]
[390769321,1760142653405,-2000.0,0.00018616,2]
[390769322,1760142653427,-306.9,0.00018626,2]
[390769323,1760142653446,-471.13721014,0.0001865,13]
[390769324,1760142653467,-3000.0,0.00018673,2]
[390769325,1760142653484,-1390.58183349,0.000187,2]
[390769326,1760142653500,-590.75308722,0.000187,2]
[390769327,1760142653517,-298.96714742,0.000187,2]
[390769328,1760142653557,-1378.47508663,0.000187,2]
[390769329,1760142653572,-10223.85292413,0.000187,2]
[390769330,1760142653588,-170.17523144,0.000187,2]
[390769331,1760142653603,-1252.0,0.00018729,2]
[390769332,1760142653618,-9035.48,0.00018738,7]
[390769333,1760142653633,-2394.1,0.00018738,7]
[390769334,1760142653649,-1000.0,0.0001876,2]
[390769335,1760142653666,-164.7584573,0.00018765,2]
[390769336,1760142653681,-6638.52865513,0.00018781,2]
[390769337,1760142653697,-171.44289943,0.00018791,2]
[390769338,1760142653713,-151.0,0.00018791,2]
[390769339,1760142653729,-500.0,0.00018795,2]
[390769340,1760142653744,-200.0,0.000188,2]
[390769341,1760142653764,-156.33,0.000188,2]
[390769342,1760142653781,-156.33,0.000188,2]
[390769343,1760142653797,-156.33,0.000188,2]
[390769344,1760142653813,-156.33,0.000188,2]
[390769345,1760142653831,-156.33,0.000188,2]
[390769346,1760142653849,-156.33,0.000188,2]
[390769347,1760142653865,-156.33,0.000188,2]
[390769348,1760142653882,-156.33,0.000188,2]
[390769349,1760142653897,-156.33,0.000188,2]
[390769350,1760142653912,-156.33,0.000188,2]
[390769351,1760142653928,-156.33,0.000188,2]
[390769352,1760142653943,-156.33,0.000188,2]
[390769353,1760142653959,-156.33,0.000188,2]
[390769354,1760142653974,-156.33,0.000188,2]
[390769355,1760142653989,-168.0,0.00018816,2]
[390769356,1760142654004,-1718.29,0.00018827,2]
[390769357,1760142654021,-168.0,0.0001883,2]
[390769358,1760142654035,-5888.0,0.00018847,2]
[390769359,1760142654049,-10670.463,0.00018858,2]
[390769360,1760142654063,-498.854,0.00018858,2]
[390769361,1760142654078,-1098.20437616,0.00018878,2]
[390769362,1760142654092,-200.72,0.00018879,2]
[390769363,1760142654110,-5888.0,0.00018887,2]
[390769364,1760142654126,-1600.0,0.00018896,2]
[390769365,1760142654141,-1390.58183349,0.000189,2]
[390769366,1760142654157,-590.75308722,0.000189,2]
[390769367,1760142654173,-298.96714742,0.000189,2]
[390769368,1760142654188,-1378.47508663,0.000189,2]
[390769369,1760142654204,-10223.85292413,0.000189,2]
[390769370,1760142654219,-170.17523144,0.000189,2]
[390769371,1760142654233,-172.70674476,0.000189,2]
[390769372,1760142654248,-2500.0,0.000189,6]
[390769373,1760142654262,-637.0,0.00018904,2]
[390769374,1760142654279,-637.0,0.00018904,2]
[390769375,1760142654295,-637.0,0.00018904,2]
[390769376,1760142654309,-637.0,0.00018904,2]
[390769377,1760142654325,-637.0,0.00018904,2]
[390769378,1760142654339,-637.0,0.00018904,2]
[390769379,1760142654352,-637.0,0.00018904,2]
[390769380,1760142654368,-637.0,0.00018904,2]
[390769381,1760142654382,-637.0,0.00018904,2]
[390769382,1760142654395,-637.0,0.00018904,2]
[390769383,1760142654413,-637.0,0.00018904,2]
[390769384,1760142654425,-637.0,0.00018904,2]
[390769385,1760142654439,-589.0,0.00018904,2]
[390769386,1760142654453,-589.0,0.00018904,2]
[390769387,1760142654467,-589.0,0.00018904,2]
[390769388,1760142654479,-589.0,0.00018904,2]
[390769389,1760142654493,-589.0,0.00018904,2]
[390769390,1760142654506,-589.0,0.00018904,2]
[390769391,1760142654518,-589.0,0.00018904,2]
[390769392,1760142654531,-589.0,0.00018904,2]
[390769393,1760142654543,-589.0,0.00018904,2]
[390769394,1760142654556,-589.0,0.00018904,2]
[390769395,1760142654571,-589.0,0.00018904,2]
[390769396,1760142654585,-461.0,0.00018904,2]
[390769397,1760142654598,-461.0,0.00018904,2]
[390769398,1760142654611,-461.0,0.00018904,2]
[390769399,1760142654625,-461.0,0.00018904,2]
[390769400,1760142654638,-461.0,0.00018904,2]
[390769401,1760142654651,-461.0,0.00018904,2]
[390769402,1760142654667,-461.0,0.00018904,2]
[390769403,1760142654680,-461.0,0.00018904,2]
[390769404,1760142654693,-461.0,0.00018904,2]
[390769405,1760142654706,-461.0,0.00018904,2]
[390769406,1760142654719,-461.0,0.00018904,2]
[390769407,1760142654732,-461.0,0.00018904,2]
[390769408,1760142654752,-461.0,0.00018904,2]
[390769409,1760142654772,-461.0,0.00018904,2]
[390769410,1760142654789,-509.0,0.00018904,2]
[390769411,1760142654805,-509.0,0.00018904,2]
[390769412,1760142654820,-509.0,0.00018904,2]
[390769413,1760142654835,-509.0,0.00018904,2]
[390769414,1760142654850,-509.0,0.00018904,2]
[390769415,1760142654865,-509.0,0.00018904,2]
[390769416,1760142654878,-509.0,0.00018904,2]
[390769417,1760142654893,-509.0,0.00018904,2]
[390769418,1760142654908,-509.0,0.00018904,2]
[390769419,1760142654924,-509.0,0.00018904,2]
[390769420,1760142654938,-509.0,0.00018904,2]
[390769421,1760142654953,-509.0,0.00018904,2]
[390769422,1760142654966,-509.0,0.00018904,2]
[390769423,1760142654981,-509.0,0.00018904,2]
[390769424,1760142654995,-500.0,0.00018973,2]
[390769425,1760142655008,-500.0,0.00018973,2]
[390769426,1760142655021,-500.0,0.00018973,2]
[390769427,1760142655034,-500.0,0.00018973,2]
[390769428,1760142655048,-500.0,0.00018973,2]
[390769429,1760142655062,-500.0,0.00018973,2]
[390769430,1760142655075,-500.0,0.00018973,2]
[390769431,1760142655089,-500.0,0.00018973,2]
[390769432,1760142655103,-500.0,0.00018973,2]
[390769433,1760142655118,-500.0,0.00018973,2]
[390769434,1760142655133,-500.0,0.00018973,2]
[390769435,1760142655149,-500.0,0.00018973,2]
[390769436,1760142655163,-500.0,0.00018973,2]
[390769437,1760142655177,-2500.0,0.00018986,3]
[390769438,1760142655191,-1587.0,0.00018987,2]
[390769439,1760142655205,-571.0,0.00018987,2]
[390769440,1760142655218,-1337.778,0.00018987,2]
[390769441,1760142655231,-604.0,0.00018987,2]
[390769442,1760142655245,-816.0,0.00018987,2]
[390769443,1760142655257,-1696.0,0.00018987,2]
[390769444,1760142655271,-2557.882,0.00018987,2]
[390769445,1760142655289,-1182.0,0.00018987,2]
[390769446,1760142655301,-901.0,0.00018987,2]
[390769447,1760142655316,-3404.0,0.00018987,2]
[390769448,1760142655334,-4120.0,0.00018987,2]
[390769449,1760142655351,-1266.0,0.00018987,2]
[390769450,1760142655368,-2500.0,0.00018994,3]
[390769451,1760142655386,-151.0,0.00018997,2]
[390769452,1760142655402,-6309.11,0.00019,2]
[390769453,1760142655419,-1999.999999,0.00019,2]
[390769454,1760142655435,-1345.19307738,0.00019,3]
[390769455,1760142655450,-1000.0,0.00019,2]
[390769456,1760142655465,-1000.0,0.00019,2]
[390769457,1760142655480,-1000.0,0.00019,2]
[390769458,1760142655493,-425992.41986295,0.00019,2]
[390769459,1760142655508,-4127.99281152,0.00019,2]
[390769460,1760142655523,-151.0,0.00019,2]
[390769461,1760142655537,-202.756762,0.00019,2]
[390769462,1760142655551,-151.0,0.00019,2]
[390769463,1760142655565,-151.0,0.00019,2]
[390769464,1760142655580,-151.0,0.00019,2]
[390769465,1760142655595,-151.0,0.00019,2]
[390769466,1760142655611,-160.122705,0.00019,2]
[390769467,1760142655628,-151.0,0.00019,2]
[390769468,1760142655644,-151.0,0.00019,2]
[390769469,1760142655657,-151.0,0.00019,2]
[390769470,1760142655675,-151.0,0.00019,2]
[390769471,1760142655688,-151.0,0.00019,2]
[390769472,1760142655701,-151.0,0.00019,2]
[390769473,1760142655714,-151.0,0.00019,2]
[390769474,1760142655728,-151.0,0.00019,2]
[390769475,1760142655742,-151.0,0.00019,2]
[390769476,1760142655756,-184.552497,0.00019,2]
[390769477,1760142655770,-414.791547,0.00019,2]
[390769478,1760142655783,-184.552497,0.00019,2]
[390769479,1760142655796,-414.791547,0.00019,2]
[390769480,1760142655809,-184.552497,0.00019,2]
[390769481,1760142655823,-414.791547,0.00019,2]
[390769482,1760142655836,-184.552497,0.00019,2]
[390769483,1760142655849,-414.791547,0.00019,2]
[390769484,1760142655862,-157.513251,0.00019,2]
[390769485,1760142655875,-157.513251,0.00019,2]
[390769486,1760142655889,-157.513251,0.00019,2]
[390769487,1760142655902,-151.0,0.00019,2]